bitfinex/quotes_SOLUSD_20241001
["timestamp","ask_amount","ask_price","bid_price","bid_amount"]
[1727765916532,23.776884,157.34,157.24,15.899]
[1727765916766,1.58945258,157.33,157.24,15.899]
[1727765916935,23.776884,157.32,157.21,22.2626]
[1727765917135,23.776884,157.3,157.21,15.9021]
[1727765917339,1.58983184,157.29,157.21,15.9021]
[1727765917547,23.776884,157.3,157.21,15.9021]
[1727765917758,23.776884,157.3,157.2,6.3612]
[1727765917759,1.58983558,157.29,157.2,6.3612]
[1727765917941,6.3593,157.25,157.21,1.27197423]
[1727765918460,6.3589,157.26,157.21,1.27197423]
[1727765918643,6.3589,157.26,157.2,6.3612]
[1727765918848,6.3595,157.25,157.2,6.3612]
[1727765919567,23.776884,157.3,157.18,15.9052]
[1727765919568,23.776884,157.3,157.21,21.6702]
[1727765919745,6.3597,157.24,157.21,21.6702]
[1727765919945,6.3593,157.25,157.21,21.6702]
[1727765920862,1.58993613,157.29,157.21,21.6702]
[1727765921047,6.3605,157.22,157.21,15.0651]
[1727765921251,6.3605,157.22,157.17,22.8509]
[1727765921438,6.361,157.21,157.17,22.8509]
[1727765921839,6.3613,157.2,157.17,22.8509]
[1727765922062,6.3609,157.22,157.18,1.27229686]
[1727765922251,6.3609,157.22,157.17,22.8509]
[1727765923163,6.3609,157.22,157.18,1.27229548]
[1727765923361,23.776884,157.25,157.17,22.8509]
[1727765923556,6.3612,157.21,157.17,22.8509]
[1727765925252,6.3605,157.22,157.18,1.27230913]
[1727765925457,15.8973,157.26,157.18,1.27230913]
[1727765925667,6.3596,157.25,157.19,6.3616]
[1727765925970,6.3597,157.24,157.19,6.3616]
[1727765926164,15.8943,157.29,157.2,7.63324382]
[1727765926665,6.3594,157.25,157.19,6.3617]
[1727765927591,6.3588,157.27,157.22,6.3604]
[1727765928080,6.3589,157.26,157.21,6.3608]
[1727765928361,6.3586,157.27,157.22,6.3604]
[1727765928572,6.3586,157.27,157.23,1.27179312]
[1727765928756,6.3586,157.27,157.22,6.3604]
[1727765929751,6.3581,157.28,157.24,21.6605]
[1727765929948,15.8911,157.33,157.24,21.6605]
[1727765929949,6.3572,157.3,157.25,7.63089584]
[1727765931170,6.3572,157.3,157.25,6.3592]
[1727765931371,6.3572,157.3,157.26,1.2715957]
[1727765931579,6.3572,157.3,157.25,6.3592]
[1727765931753,6.3572,157.3,157.26,1.27162365]
[1727765932076,6.3572,157.3,157.24,28.0201]
[1727765933049,6.3577,157.29,157.24,28.0201]
[1727765933384,7.94753209,157.28,157.24,21.6605]
[1727765933547,6.358,157.28,157.24,21.6605]
[1727765933979,6.3577,157.29,157.25,1.27171126]
[1727765934153,6.3577,157.29,157.24,28.0201]
[1727765935160,1.58953224,157.32,157.24,21.6605]
[1727765935476,6.358,157.28,157.24,21.6605]
[1727765935976,6.3577,157.29,157.24,28.0202]
[1727765936172,23.776884,157.35,157.24,37.5588]
[1727765936479,6.3577,157.29,157.24,43.9184]
[1727765937654,1.58951059,157.34,157.24,37.5588]
[1727765937856,6.3581,157.28,157.25,1.27172373]
[1727765938081,6.3581,157.28,157.24,37.5588]
[1727765938261,6.3577,157.29,157.24,43.9184]
[1727765940368,1.58960193,157.28,157.24,21.6605]
[1727765940681,6.3593,157.25,157.24,15.3156]
[1727765941360,6.3593,157.25,157.21,15.9021]
[1727765942472,6.3589,157.26,157.21,22.2626]
[1727765942772,6.3585,157.27,157.22,6.3604]
[1727765943161,23.776884,157.3,157.23,1.27183718]
[1727765943364,15.8903,157.33,157.23,1.27183718]
[1727765943555,6.3573,157.3,157.25,6.3589]
[1727765943763,6.3578,157.29,157.24,15.5141]
[1727765943983,6.3578,157.29,157.24,21.8736]
[1727765945783,6.3578,157.29,157.25,1.27161778]
[1727765945955,6.3564,157.32,157.27,6.3581]
[1727765946160,6.3561,157.33,157.28,7.62937475]
[1727765946469,15.8874,157.36,157.26,22.1849]
[1727765946470,6.3565,157.32,157.27,6.3584]
[1727765949063,6.357,157.31,157.26,28.5437]
[1727765949269,6.357,157.31,157.27,1.27145548]
[1727765950457,6.357,157.31,157.26,28.5437]
[1727765951782,6.3564,157.33,157.27,7.62975363]
[1727765951971,23.776884,157.35,157.27,1.27145363]
[1727765951972,6.3556,157.34,157.27,1.27145363]
[1727765952378,15.8841,157.39,157.3,6.3572]
[1727765952379,6.3553,157.35,157.3,6.3572]
[1727765952562,6.3553,157.35,157.31,1.27121351]
[1727765953178,15.8841,157.39,157.3,1.27124196]
[1727765953479,6.3556,157.34,157.29,6.3576]
[1727765954261,6.3556,157.34,157.3,1.27125899]
[1727765954468,6.3552,157.35,157.3,1.27125899]
[1727765954673,6.3552,157.35,157.3,7.62845899]
[1727765954888,6.3552,157.35,157.3,6.3572]
[1727765955394,7.9448242,157.34,157.28,38.5666]
[1727765955686,6.3561,157.33,157.28,38.5666]
[1727765956071,23.776884,157.38,157.3,6.3571]
[1727765956270,6.3556,157.35,157.28,32.2089]
[1727765956475,7.94493553,157.34,157.28,38.5666]
[1727765957685,6.3558,157.34,157.28,38.5666]
[1727765958484,6.3572,157.31,157.28,16.3147]
[1727765961290,6.3572,157.3,157.28,16.3147]
[1727765961472,6.3569,157.31,157.28,16.3147]
[1727765962879,15.8869,157.37,157.29,1.27151049]
[1727765963197,1.58913352,157.36,157.3,6.3572]
[1727765963376,28.99681776,157.4,157.3,6.3572]
[1727765963571,28.99681776,157.4,157.28,32.209]
[1727765963572,6.3557,157.34,157.28,38.5666]
[1727765963768,6.3557,157.34,157.29,6.3576]
[1727765964192,6.3553,157.35,157.29,6.3576]
[1727765964778,1.58910209,157.39,157.29,6.3576]
[1727765964993,15.8867,157.37,157.28,16.3147]
[1727765965197,6.3569,157.31,157.28,16.3147]
[1727765965781,6.3564,157.33,157.28,16.3147]
[1727765966372,6.3565,157.32,157.28,16.3147]
[1727765967670,23.776884,157.36,157.28,16.3147]
[1727765967889,6.3561,157.33,157.28,16.3147]
[1727765968077,1.58930284,157.32,157.28,16.3147]
[1727765969093,7.94580284,157.32,157.28,16.3147]
[1727765969297,1.58928637,157.35,157.28,16.3147]
[1727765969473,23.776884,157.33,157.28,16.3147]
[1727765969674,6.3573,157.3,157.28,16.3147]
[1727765969877,7.94704145,157.29,157.28,16.3147]
[1727765970079,6.3572,157.31,157.28,16.3147]
[1727765970608,6.3572,157.3,157.28,16.3147]
[1727765972179,7.94732156,157.29,157.26,6.2878]
[1727765972388,6.3578,157.29,157.26,6.2878]
[1727765972782,6.3584,157.27,157.24,15.2304]
[1727765972992,6.3581,157.28,157.24,15.2304]
[1727765973398,6.3581,157.28,157.24,16.50216575]
[1727765974290,6.3581,157.28,157.24,15.2304]
[1727765975089,6.3586,157.27,157.24,15.2304]
[1727765976382,1.58982726,157.26,157.17,15.9062]
[1727765976588,6.36,157.24,157.18,6.3618]
[1727765977108,1.59013851,157.24,157.17,25.69055353]
[1727765977290,23.776884,157.28,157.17,26.96266434]
[1727765977492,23.776884,157.28,157.17,23.54071081]
[1727765977815,23.776884,157.28,157.17,15.9062]
[1727765978103,6.3609,157.21,157.16,28.8057]
[1727765978308,15.8972,157.26,157.17,1.27236668]
[1727765978309,6.3605,157.22,157.17,1.27236668]
[1727765978705,23.776884,157.25,157.17,1.27236668]
[1727765979003,6.3608,157.22,157.18,1.27227614]
[1727765979305,6.3608,157.22,157.16,28.8057]
[1727765980003,6.3608,157.22,157.17,1.272276]
[1727765980400,6.3601,157.23,157.17,1.272276]
[1727765980791,6.3601,157.23,157.16,38.3491]
[1727765981309,6.3597,157.24,157.18,6.3618]
[1727765981610,6.3597,157.24,157.19,1.27209354]
[1727765982105,6.3593,157.25,157.2,1.27209348]
[1727765982308,6.3593,157.25,157.18,15.9044]
[1727765982509,6.3593,157.25,157.19,7.63339827]
[1727765983107,6.3593,157.25,157.19,6.3614]
[1727765983791,6.3593,157.25,157.2,1.27199336]
[1727765983997,6.3593,157.25,157.19,6.3614]
[1727765985115,6.3598,157.24,157.19,6.3614]
[1727765985611,6.3601,157.23,157.18,22.2665]
[1727765985816,1.58999772,157.26,157.18,22.2665]
[1727765985817,1.58999772,157.26,157.18,15.9044]
[1727765986111,6.3605,157.22,157.18,15.9044]
[1727765987214,6.3609,157.21,157.17,6.3624]
[1727765987627,6.3609,157.21,157.18,1.27219537]
[1727765988118,6.3609,157.21,157.16,28.8056]
[1727765988294,6.3609,157.21,157.17,7.63467692]
[1727765988809,6.3605,157.22,157.17,7.63467692]
[1727765989009,6.3605,157.22,157.17,6.3625]
[1727765989505,23.776884,157.25,157.16,22.4428]
[1727765989705,6.3609,157.21,157.16,28.8056]
[1727765989903,1.5902186,157.26,157.16,28.8056]
[1727765990116,6.3613,157.2,157.17,1.27228103]
[1727765990416,6.3613,157.2,157.16,22.4428]
[1727765990917,39.675784,157.25,157.16,22.4428]
[1727765991103,6.3616,157.2,157.16,22.4428]
[1727765992015,6.3616,157.2,157.16,16.366]
[1727765992330,6.3618,157.19,157.16,16.366]
[1727765998608,39.675784,157.25,157.16,16.366]
[1727765998797,6.3609,157.21,157.17,1.27239374]
[1727765999629,6.3613,157.2,157.16,16.366]
[1727766000816,39.675784,157.25,157.14,15.9087]
[1727766001023,6.3621,157.18,157.14,15.9087]
[1727766001331,6.3617,157.19,157.14,22.2722]
[1727766001837,6.3617,157.19,157.14,22.2724]
[1727766002423,1.59051537,157.22,157.14,15.9087]
[1727766002731,23.776884,157.23,157.15,1.27240983]
[1727766002915,6.3614,157.2,157.15,7.63560983]
[1727766003519,20.0,157.27,157.17,15.9059]
[1727766003735,12.006,157.28,157.18,13.73879312]
[1727766004032,6.358,157.29,157.22,6.3604]
[1727766004219,15.8902,157.33,157.23,29.81216103]
[1727766004533,6.3578,157.29,157.24,6.2259]
[1727766004832,6.3574,157.3,157.24,12.5855]
[1727766005034,1.58953047,157.32,157.24,6.2259]
[1727766005243,6.3584,157.28,157.24,6.2259]
[1727766005806,13.11382317,157.36,157.26,6.3587]
[1727766006025,6.3568,157.31,157.27,1.2714222]
[1727766006531,6.3565,157.32,157.27,1.2714222]
[1727766007105,6.3565,157.32,157.26,6.3587]
[1727766007507,6.3563,157.33,157.27,1.27138843]
[1727766007712,6.2195,157.38,157.24,6.2259]
[1727766007713,1.5891336,157.36,157.24,6.2259]
[1727766007913,6.3581,157.28,157.24,6.2259]
[1727766008121,15.8895,157.34,157.25,1.27154761]
[1727766008421,22.1048,157.38,157.25,19.44485513]
[1727766008641,6.3564,157.32,157.25,19.44485513]
[1727766008815,6.3564,157.32,157.25,6.3592]
[1727766010029,1.58908318,157.37,157.24,22.1245]
[1727766010348,47.6647,157.35,157.24,6.2259]
[1727766010640,23.776884,157.34,157.24,6.2259]
[1727766012033,23.776884,157.34,157.25,1.27145218]
[1727766012333,23.776884,157.34,157.24,6.2259]
[1727766012524,6.3577,157.29,157.24,6.2259]
[1727766012725,6.3581,157.28,157.24,6.2259]
[1727766012921,6.3593,157.25,157.24,6.2259]
[1727766013530,6.3588,157.27,157.24,6.2259]
[1727766014320,15.8911,157.33,157.24,6.2259]
[1727766014321,6.359,157.26,157.24,6.2259]
[1727766014518,6.359,157.26,157.24,7.49760649]
[1727766015819,6.359,157.26,157.24,6.2259]
[1727766016124,6.3597,157.24,157.23,16.0738]
[1727766016439,15.8956,157.28,157.2,6.0495]
[1727766016440,6.3609,157.21,157.2,6.0495]
[1727766017144,15.8956,157.28,157.2,6.0495]
[1727766017442,6.3604,157.23,157.2,6.0495]
[1727766017649,6.3606,157.22,157.2,6.0495]
[1727766018131,15.8956,157.28,157.21,1.27200834]
[1727766018339,6.3597,157.24,157.21,1.27200834]
[1727766019031,6.3592,157.26,157.21,7.63280834]
[1727766019441,6.3592,157.26,157.21,6.3608]
[1727766020437,6.3585,157.27,157.22,6.3604]
[1727766021338,6.3585,157.27,157.2,6.0495]
[1727766021339,6.3589,157.26,157.21,30.137684]
[1727766021519,1.58959515,157.3,157.21,39.678284]
[1727766021725,1.58959515,157.3,157.22,16.4387]
[1727766022544,6.3588,157.27,157.22,22.7991]
[1727766026344,6.359,157.26,157.22,16.4387]
[1727766028237,6.3593,157.25,157.22,16.4387]
[1727766031955,6.3589,157.26,157.23,1.27177935]
[1727766032133,6.3589,157.26,157.22,16.4387]
[1727766033230,6.3589,157.26,157.23,1.27172877]
[1727766033440,6.3589,157.26,157.22,16.4387]
[1727766033832,6.3585,157.27,157.23,6.3601]
[1727766034025,6.3585,157.27,157.22,16.4387]
[1727766034431,6.3585,157.27,157.23,1.27169764]
[1727766034822,6.3585,157.27,157.22,22.7988]
[1727766035548,6.3585,157.27,157.23,1.27165765]
[1727766036727,6.3589,157.26,157.22,16.4387]
[1727766039734,6.3595,157.25,157.22,16.4387]
[1727766040554,6.3595,157.25,157.23,1.27178135]
[1727766040745,6.3595,157.25,157.22,16.4387]
[1727766041130,6.3597,157.24,157.22,16.4387]
[1727766041338,12.006,157.25,157.14,16.0048]
[1727766041548,11.16055757,157.23,157.14,16.0048]
[1727766041837,25.36741881,157.22,157.14,16.0048]
[1727766042035,30.138384,157.2,157.14,16.0048]
[1727766042343,6.3615,157.2,157.14,16.0048]
[1727766042733,6.3615,157.2,157.15,1.27247199]
[1727766042934,6.3615,157.2,157.14,16.0048]
[1727766043145,23.776884,157.19,157.14,16.0048]
[1727766043456,6.3622,157.18,157.14,16.0048]
[1727766043663,6.3622,157.18,157.15,3.41783689]
[1727766044444,6.3628,157.17,157.15,3.41783689]
[1727766045257,1.59089851,157.16,157.15,3.41783689]
[1727766045455,6.3628,157.17,157.15,3.41783689]
[1727766045956,6.3632,157.16,157.08,34.88399295]
[1727766046340,6.3634,157.15,157.08,28.51799295]
[1727766046550,6.3634,157.15,157.08,21.4497]
[1727766047063,35.902,157.22,157.09,37.5021004]
[1727766047362,6.3617,157.19,157.12,6.3643]
[1727766047679,6.3627,157.17,157.1,7.0625212]
[1727766047859,6.3627,157.17,157.09,6.3657]
[1727766047860,6.3627,157.17,157.09,13.4282212]
[1727766048063,6.3627,157.17,157.1,6.3653]
[1727766050750,8.02908936,157.21,157.1,39.689684]
[1727766050953,1.59062124,157.2,157.1,39.689684]
[1727766051147,6.3612,157.21,157.15,6.3633]
[1727766051342,7.86332589,157.25,157.16,1.2722157]
[1727766051553,7.86332589,157.25,157.14,12.45247634]
[1727766051750,6.3609,157.21,157.14,12.45247634]
[1727766052048,6.3613,157.2,157.13,28.7424]
[1727766053172,6.3609,157.22,157.14,6.3637]
[1727766053348,6.3609,157.21,157.14,6.3637]
[1727766054448,6.3613,157.2,157.13,22.3786]
[1727766054661,6.3613,157.2,157.13,28.7427]
[1727766055767,6.3613,157.2,157.14,6.3637]
[1727766055966,1.59037238,157.24,157.13,22.3786]
[1727766055967,23.776884,157.24,157.16,16.378]
[1727766056148,6.3638,157.14,157.12,16.378]
[1727766057450,6.3634,157.15,157.12,16.378]
[1727766058263,6.3638,157.14,157.12,16.378]
[1727766059366,6.3631,157.16,157.12,16.378]
[1727766059557,1.5910674,157.15,157.12,16.378]
[1727766059763,6.3637,157.14,157.12,16.378]
[1727766061074,23.776884,157.19,157.12,16.378]
[1727766061075,6.3641,157.13,157.12,16.378]
[1727766061467,17.49669868,157.18,157.09,6.5758]
[1727766061773,23.776884,157.17,157.09,6.5758]
[1727766061950,6.3645,157.13,157.09,6.5758]
[1727766062158,6.3645,157.12,157.09,6.5758]
[1727766062703,6.3645,157.12,157.09,7.84877606]
[1727766062974,6.3633,157.15,157.09,6.5758]
[1727766065468,1.59101283,157.17,157.09,6.5758]
[1727766065779,23.776884,157.16,157.09,6.5758]
[1727766065956,23.776884,157.14,157.09,6.5758]
[1727766066155,6.3645,157.13,157.09,6.5758]
[1727766067095,6.3645,157.13,157.09,7.84877829]
[1727766067272,6.3637,157.14,157.09,6.5758]
[1727766067478,6.3637,157.14,157.1,1.27285058]
[1727766067784,6.3637,157.14,157.09,6.5758]
[1727766069888,6.3645,157.12,157.09,6.5758]
[1727766070888,6.3651,157.11,157.09,6.5758]
[1727766071607,21.59115862,157.15,157.08,15.3831]
[1727766071788,21.59115862,157.15,157.01,7.81522579]
[1727766071789,6.3667,157.07,157.04,21.8522]
[1727766072098,23.776884,157.11,157.04,21.8522]
[1727766072282,1.59168303,157.1,157.04,21.8522]
[1727766072882,6.3672,157.06,157.04,15.4191]
[1727766073078,1.59168303,157.1,157.04,15.4191]
[1727766073079,6.3673,157.05,157.04,15.4191]
[1727766073884,6.3673,157.05,157.0,410.1286]
[1727766074282,6.3679,157.04,157.0,410.1286]
[1727766074478,6.3682,157.03,157.0,410.1286]
[1727766074897,6.3686,157.02,157.0,410.1286]
[1727766075099,43.776884,157.08,157.0,403.5445]
[1727766075289,6.3679,157.04,157.0,403.5445]
[1727766076482,23.776884,157.08,157.0,403.5445]
[1727766076684,6.3677,157.05,157.0,403.5445]
[1727766077902,6.3679,157.04,157.0,403.5445]
[1727766078090,6.3683,157.03,157.0,403.5445]
[1727766078408,1.59206257,157.05,157.0,403.5445]
[1727766078409,6.3687,157.02,157.0,403.5445]
[1727766078777,30.145884,157.01,157.0,388.0]
[1727766080791,6.369,157.01,157.0,388.0]
[1727766085310,6.3686,157.02,157.0,388.0]
[1727766085718,23.776884,157.05,157.0,388.0]
[1727766086006,30.145884,157.01,157.0,388.0]
[1727766086883,50.145884,157.01,157.0,291.53899289]
[1727766090420,30.145884,157.01,157.0,291.53899289]
[1727766090917,6.369,157.01,157.0,291.53899289]
[1727766091504,23.78112589,157.06,157.0,291.53899289]
[1727766091711,6.369,157.01,157.0,291.53899289]
[1727766092400,15.9178,157.06,157.0,291.53899289]
[1727766092605,6.3678,157.04,157.0,307.72219289]
[1727766092920,25.99172424,157.09,157.01,1.27365868]
[1727766093415,25.99172424,157.09,157.0,307.72219289]
[1727766093720,6.3677,157.05,157.0,307.72219289]
[1727766093895,6.3679,157.04,157.0,307.72219289]
[1727766094310,6.3684,157.03,157.0,307.72219289]
[1727766094593,6.369,157.01,157.0,307.72219289]
[1727766096201,6.369,157.01,157.0,291.53899289]
[1727766097218,30.145884,157.01,157.0,291.53899289]
[1727766100523,6.369,157.01,157.0,291.53899289]
[1727766104718,30.145884,157.01,157.0,291.53899289]
[1727766119235,6.369,157.01,157.0,291.53899289]
[1727766127635,30.145884,157.01,157.0,291.53899289]
[1727766129240,50.145884,157.01,157.0,216.96824187]
[1727766134528,30.145884,157.01,157.0,216.96824187]
[1727766136162,6.369,157.01,157.0,216.96824187]
[1727766137254,26.369,157.01,157.0,216.96824187]
[1727766137640,50.145884,157.01,157.0,216.96824187]
[1727766138957,6.369,157.01,157.0,216.96824187]
[1727766139167,6.369,157.01,157.0,223.13094187]
[1727766139548,15.9183,157.06,157.0,223.13094187]
[1727766139747,6.369,157.01,157.0,223.13094187]
[1727766140662,26.369,157.01,157.0,223.13094187]
[1727766145157,26.369,157.01,157.0,216.96824187]
[1727766145461,50.145884,157.01,157.0,216.96824187]
[1727766156267,6.369,157.01,157.0,216.96824187]
[1727766157858,26.369,157.01,157.0,216.96824187]
[1727766159056,50.145884,157.01,157.0,216.96824187]
[1727766159270,50.145884,157.01,157.0,212.67154187]
[1727766160248,50.145884,157.01,157.0,138.94299085]
[1727766160452,63.20285185,157.01,157.0,110.47470515]
[1727766160684,72.90730676,157.01,157.0,94.17960515]
[1727766161051,72.90730676,157.01,157.0,81.58230515]
[1727766161352,72.90730676,157.01,157.0,67.46640515]
[1727766161353,63.20285185,157.01,157.0,67.46640515]
[1727766161552,63.20285185,157.01,157.0,57.00570515]
[1727766162378,63.20285185,157.01,157.0,48.79300515]
[1727766162756,63.20285185,157.01,157.0,44.90510515]
[1727766162977,63.20285185,157.01,157.0,41.01720515]
[1727766163175,63.20285185,157.01,157.0,36.99210515]
[1727766163372,26.371,156.96,156.95,0.8418637]
[1727766164078,50.147884,156.96,156.95,0.8418637]
[1727766164454,50.147884,156.96,156.9,15.5809]
[1727766164455,6.373,156.91,156.9,15.5809]
[1727766170981,15.929,156.95,156.9,15.5809]
[1727766170982,6.3726,156.93,156.9,15.5809]
[1727766171165,6.3726,156.93,156.91,1.27441334]
[1727766171476,6.3726,156.93,156.9,15.5809]
[1727766172469,7.96479882,156.95,156.9,15.5809]
[1727766172681,6.3719,156.94,156.9,15.5809]
[1727766173566,6.3722,156.93,156.9,15.5809]
[1727766174073,6.371,156.96,156.92,6.3453]
[1727766174283,13.11620671,157.04,156.93,13.77450287]
[1727766174586,6.3706,156.97,156.95,15.7583]
[1727766174972,1.59262796,157.02,156.95,15.7583]
[1727766174973,6.371,156.96,156.95,15.7583]
[1727766175390,6.3722,156.93,156.92,6.3453]
[1727766175688,20.0,157.02,156.92,6.3453]
[1727766175689,1.59302481,156.98,156.92,6.3453]
[1727766175893,6.3718,156.94,156.92,6.3453]
[1727766178389,6.3715,156.95,156.93,1.27429889]
[1727766179190,6.3707,156.97,156.93,1.27429889]
[1727766179385,6.3707,156.97,156.92,12.7178]
[1727766180171,15.9179,157.06,156.94,19.53759627]
[1727766180376,6.369,157.01,156.96,6.371]
[1727766180684,6.369,157.01,156.95,6.3713]
[1727766180875,6.3695,157.0,156.95,6.3713]
[1727766181882,6.3689,157.02,156.98,16.4015]
[1727766182386,6.3691,157.01,156.98,16.4015]
[1727766182871,1.5921565,157.05,156.98,16.4015]
[1727766183086,15.9179,157.06,156.98,16.4015]
[1727766183087,6.3682,157.03,156.99,1.27372077]
[1727766183281,6.3682,157.03,156.98,22.7717]
[1727766183595,6.3682,157.03,156.99,1.27366424]
[1727766184104,1.10959353,157.1,156.99,1.27366424]
[1727766184280,6.3673,157.06,157.0,25.97009627]
[1727766184593,6.3673,157.06,157.02,15.4574]
[1727766184798,6.366,157.09,157.03,7.64112108]
[1727766185589,6.366,157.09,157.03,6.3678]
[1727766185887,6.3663,157.08,157.03,6.3678]
[1727766186473,6.3663,157.08,157.02,41.36359627]
[1727766186777,1.59150331,157.07,157.02,15.4574]
[1727766186981,6.3682,157.03,157.02,15.4574]
[1727766190686,6.369,157.01,157.0,6.4325]
[1727766193197,6.3682,157.03,157.0,6.4325]
[1727766193500,6.3678,157.04,157.0,6.4325]
[1727766197494,6.3678,157.04,157.01,1.27352985]
[1727766199102,6.3682,157.03,157.01,1.27352985]
[1727766200491,6.3682,157.03,157.0,6.4325]
[1727766201507,20.0,157.06,157.01,1.27354304]
[1727766201710,6.3666,157.07,157.02,15.616]
[1727766202009,15.9096,157.14,157.05,19.53759627]
[1727766202189,15.9096,157.14,157.06,1.2730007]
[1727766202390,15.9096,157.14,157.05,19.53759627]
[1727766202807,6.3654,157.1,157.06,1.27303119]
[1727766202980,15.9066,157.17,157.07,35.42409627]
[1727766203396,15.9066,157.17,157.08,1.27287335]
[1727766204188,6.3647,157.12,157.08,1.27287335]
[1727766204921,6.3651,157.11,157.07,35.42409627]
[1727766205383,20.0,157.14,157.07,15.8865]
[1727766205590,6.3653,157.11,157.07,15.8865]
[1727766209691,6.3654,157.1,157.07,15.8865]
[1727766209916,1.59111664,157.14,157.07,15.8865]
[1727766211198,6.3657,157.1,157.07,15.8865]
[1727766211405,6.3661,157.09,157.07,15.8865]
[1727766212319,43.776884,157.13,157.07,15.8865]
[1727766212511,6.3661,157.08,157.07,15.8865]
[1727766213802,6.3657,157.09,157.07,15.8865]
[1727766214604,6.3661,157.08,157.07,15.8865]
[1727766214811,6.3673,157.06,157.04,6.5082]
[1727766214997,6.3673,157.05,157.04,6.5082]
[1727766217330,6.367,157.06,157.04,7.78152236]
[1727766217711,6.367,157.06,157.04,6.5082]
[1727766220905,6.3673,157.05,157.04,6.5082]
[1727766223205,6.3678,157.04,157.03,16.1212]
[1727766223615,6.3684,157.03,157.0,6.0498]
[1727766227322,15.916,157.08,157.01,1.27351328]
[1727766227323,6.3677,157.05,157.01,1.27351328]
[1727766227626,6.3677,157.05,157.01,20.81110955]
[1727766228014,6.367,157.06,157.01,27.18000955]
[1727766229416,20.0,157.1,157.01,27.18000955]
[1727766229632,6.3674,157.05,157.01,27.18000955]
[1727766232012,6.3674,157.05,157.01,19.53759627]
[1727766232332,20.0,157.1,157.02,1.27334863]
[1727766232626,6.3658,157.09,157.04,22.3005]
[1727766232837,6.3662,157.08,157.04,22.3005]
[1727766233015,6.3662,157.08,157.04,15.9328]
[1727766233213,1.59137622,157.13,157.04,15.9328]
[1727766233423,6.3658,157.09,157.04,22.3005]
[1727766233612,6.3654,157.1,157.05,27.17798542]
[1727766233813,6.3654,157.1,157.06,6.4705]
[1727766234008,15.9096,157.14,157.07,1.27300336]
[1727766234222,6.3657,157.09,157.06,6.4705]
[1727766238126,6.3662,157.08,157.06,6.4705]
[1727766238921,6.3662,157.08,157.04,22.3005]
[1727766238922,6.3669,157.06,157.04,15.9328]
[1727766243222,15.9126,157.11,157.04,15.9328]
[1727766243429,6.3656,157.1,157.07,19.53759627]
[1727766243737,6.3649,157.12,157.09,12.47336271]
[1727766243938,6.3645,157.12,157.11,12.47336271]
[1727766244138,6.3645,157.12,157.1,12.47336271]
[1727766245435,6.3645,157.12,157.09,12.47336271]
[1727766245643,6.3645,157.12,157.07,25.85582462]
[1727766249132,20.0,157.14,157.07,19.48932462]
[1727766249335,6.3651,157.11,157.07,19.48932462]
[1727766249643,6.3651,157.11,157.08,1.2728835]
[1727766250342,6.3651,157.11,157.07,19.48932462]
[1727766252166,6.3646,157.12,157.08,1.2728783]
[1727766253061,6.3646,157.12,157.07,25.85572462]
[1727766253447,25.36796382,157.15,157.07,19.48932462]
[1727766253649,6.3653,157.1,157.06,15.9167]
[1727766253853,6.3662,157.08,157.04,22.3005]
[1727766254560,6.3662,157.08,157.04,15.9328]
[1727766254951,20.0,157.1,157.04,15.9328]
[1727766255137,1.591566,157.09,157.04,15.9328]
[1727766255862,1.591566,157.09,157.02,12.5678]
[1727766256058,6.367,157.06,157.02,12.5678]
[1727766257349,20.0,157.1,157.02,12.5678]
[1727766257666,6.3666,157.07,157.02,12.5678]
[1727766260969,6.3666,157.07,157.03,7.64134769]
[1727766261143,15.9124,157.11,157.03,7.64134769]
[1727766261454,12.006,157.13,157.04,6.3677]
[1727766261763,12.006,157.13,157.06,6.3669]
[1727766261764,6.3654,157.1,157.06,6.3669]